fUSD/lending_fUSD_20260409
["ID","MTS","AMOUNT","RATE_DAILY","PERIOD"]
[420121936,1775694641775,-1573.0,0.0001472,2]
[420121937,1775694641785,-162.0,0.0001472,2]
[420121938,1775694641795,-1038.614451,0.00014749,2]
[420121939,1775694641804,-170.32,0.00014791,2]
[420121940,1775694641813,-250.0,0.00014795,2]
[420121941,1775694641823,-500.0,0.0001484,2]
[420121942,1775694641832,-500.0,0.0001484,2]
[420121943,1775694641842,-500.0,0.0001484,2]
[420121944,1775694641851,-500.0,0.0001484,2]
[420121945,1775694641860,-321.58,0.00014849,2]
[420121946,1775694641869,-240.4,0.00014863,2]
[420121947,1775694641879,-786.02,0.00014881,2]
[420121948,1775694641888,-4500.0,0.000149,5]
[420121949,1775694641897,-400.0,0.000149,5]
[420121950,1775694641907,-502.0,0.00014908,3]
[420121951,1775694641916,-150.0,0.00014915,2]
[420121952,1775694641925,-258.05,0.00014923,2]
[420121953,1775694641935,-174.61919141,0.00014924,2]
[420121954,1775694641944,-500.0,0.00014924,2]
[420121955,1775694641954,-578.20924308,0.00014924,2]
[420121956,1775694641963,-7965.41053268,0.00014924,2]
[420121957,1775694641972,-1191.11104075,0.00014924,2]
[420121958,1775694641982,-601.3376128,0.00014924,2]
[420121959,1775694641991,-200.0,0.00014924,2]
[420121960,1775694642000,-151.0,0.00014924,2]
[420121961,1775694642009,-151.0,0.00014924,2]
[420121962,1775694642018,-151.0,0.00014924,2]
[420121963,1775694642028,-158.44511549,0.00014924,2]
[420121964,1775694642038,-743.50770149,0.00014924,2]
[420121965,1775694642047,-174.61919142,0.00014924,2]
[420121966,1775694642056,-160.0,0.00014924,2]
[420121967,1775694642066,-151.0,0.00014924,2]
[420121968,1775694642075,-174.61919141,0.00014924,2]
[420121969,1775694642085,-174.61919141,0.00014924,2]
[420121970,1775694642094,-1500.0,0.00014924,2]
[420121971,1775694642103,-1500.0,0.00014924,2]
[420121972,1775694642113,-1500.0,0.00014924,2]
[420121973,1775694642122,-1500.0,0.00014924,2]
[420121974,1775694642131,-1500.0,0.00014924,2]
[420121975,1775694642140,-1500.0,0.00014924,2]
[420121976,1775694642149,-1532.75885711,0.00014924,2]
[420121977,1775694642158,-1500.0,0.00014924,2]
[420121979,1775694642168,-1500.0,0.00014924,2]
[420121981,1775694642177,-170.0,0.00014924,2]
[420121983,1775694642186,-170.0,0.00014924,2]
[420121984,1775694642195,-578.20924308,0.00014924,2]
[420121986,1775694642204,-170.0,0.00014924,2]
[420121988,1775694642214,-170.0,0.00014924,2]
[420121990,1775694642224,-170.0,0.00014924,2]
[420121991,1775694642233,-170.0,0.00014924,2]
[420121992,1775694642242,-170.0,0.00014924,2]
[420121993,1775694642251,-170.0,0.00014924,2]
[420121994,1775694642260,-170.0,0.00014924,2]
[420121995,1775694642269,-170.0,0.00014924,2]
[420121996,1775694642278,-170.0,0.00014924,2]
[420121997,1775694642289,-279.9045709,0.00014924,2]
[420121998,1775694642299,-170.0,0.00014924,2]
[420121999,1775694642308,-170.0,0.00014924,2]
[420122000,1775694642318,-170.0,0.00014924,2]
[420122001,1775694642327,-170.0,0.00014924,2]
[420122002,1775694642336,-170.0,0.00014924,2]
[420122003,1775694642346,-2003.16188398,0.00014925,2]
[420122004,1775694642356,-5000.0,0.00014925,2]
[420122005,1775694642365,-5000.0,0.00014925,2]
[420122006,1775694642375,-5000.0,0.00014925,2]
[420122007,1775694642385,-5000.0,0.00014925,2]
[420122008,1775694642395,-985.91,0.00014936,2]
[420122009,1775694642404,-237.29758343,0.00014943,2]
[420122010,1775694642413,-510.10894383,0.00014949,2]
[420122011,1775694642422,-346.804114,0.00014971,7]
[420122012,1775694642431,-500.0,0.00014979,2]
[420122013,1775694642441,-8260.13072239,0.00014979,2]
[420122014,1775694642450,-151.0,0.00014979,2]
[420122015,1775694642459,-231.48568323,0.00014984,2]
[420122018,1775694642788,-163.3228131,0.00014984,2]
[420122019,1775694642799,-212.57606173,0.00014984,2]
[420122020,1775694642810,-160.21278271,0.00014984,2]
[420122021,1775694642820,-1719.067258,0.00014989,7]
[420122022,1775694642830,-300.0,0.00015,2]
[420122023,1775694642839,-215.35,0.00015,2]
[420122024,1775694642849,-644.24089955,0.00015,2]
[420122025,1775694642858,-500.0,0.00015,2]
[420122026,1775694642868,-10000.2,0.00015,2]
[420122027,1775694642877,-200.0,0.00015033,2]
[420122028,1775694642887,-8565.75555911,0.00015034,2]
[420122030,1775694642896,-500.0,0.00015034,2]
[420122032,1775694642906,-151.0,0.00015034,2]
[420122034,1775694642916,-1573.0,0.0001504,2]
[420122037,1775694642926,-319.0,0.0001504,2]
[420122040,1775694642935,-899.972035,0.00015048,2]
[420122043,1775694642945,-321.58,0.00015057,2]
[420122044,1775694642954,-2029.06,0.00015068,2]
[420122045,1775694642964,-520.58,0.00015068,2]
[420122046,1775694642975,-800.91792691,0.00015068,2]
[420122047,1775694642984,-8882.6885148,0.00015089,2]
[420122048,1775694642995,-500.0,0.00015089,2]
[420122049,1775694643004,-151.0,0.00015089,2]
[420122050,1775694643014,-350.0,0.00015103,2]
[420122051,1775694643025,-350.0,0.0001511,2]
[420122052,1775694643036,-1000.0,0.00015115,2]
[420122053,1775694643046,-1000.0,0.00015115,2]
[420122054,1775694643056,-1000.0,0.00015115,2]
[420122055,1775694643067,-1000.0,0.00015115,2]
[420122056,1775694643078,-1002.36079739,0.00015115,2]
[420122057,1775694643089,-238.38,0.00015117,17]
[420122058,1775694643099,-42060.88375008,0.00015117,2]
[420122059,1775694643110,-46559.27135697,0.00015117,2]
[420122060,1775694643121,-500.0,0.00015144,2]
[420122061,1775694643131,-9211.34798985,0.00015144,2]
[420122062,1775694643142,-151.0,0.00015144,2]
[420122063,1775694643152,-786.02,0.00015155,2]
[420122064,1775694643162,-237.29758343,0.00015183,2]
[420122065,1775694643172,-5000.0,0.00015197,2]
[420122066,1775694643181,-500.0,0.00015199,2]
[420122067,1775694643192,-9552.16786547,0.00015199,2]
[420122068,1775694643202,-151.0,0.00015199,2]
[420122069,1775694643213,-1311.204454,0.000152,2]
[420122070,1775694643224,-6700.0,0.000152,5]
[420122071,1775694643234,-700.0,0.000152,5]
[420122072,1775694643244,-883.4,0.0001521,2]
[420122073,1775694643253,-1000.0,0.00015248,2]
[420122074,1775694643263,-1070.5730129,0.00015248,2]
[420122075,1775694643273,-1000.0,0.00015248,2]
[420122076,1775694643283,-170.32,0.0001525,2]
[420122077,1775694643296,-500.0,0.00015254,2]
[420122078,1775694643306,-9905.5980765,0.00015254,2]
[420122079,1775694643316,-151.0,0.00015254,2]
[420122080,1775694643326,-321.58,0.00015266,2]
[420122081,1775694643336,-431.29407897,0.00015272,2]
[420122082,1775694643347,-377.13615219,0.00015272,2]
[420122083,1775694643357,-510.10894383,0.00015275,2]
[420122084,1775694643366,-2004.77,0.00015285,2]
[420122085,1775694643377,-240.4,0.00015286,2]
[420122086,1775694643387,-1264.0,0.00015297,2]
[420122087,1775694643398,-1217.0,0.00015297,2]
[420122088,1775694643408,-926.0,0.00015297,2]
[420122089,1775694643419,-1363.382,0.00015297,2]
[420122090,1775694643429,-622.0,0.00015297,2]
[420122091,1775694643439,-9000.0,0.000153,5]
[420122092,1775694643449,-900.0,0.000153,5]
[420122093,1775694643459,-2000.0,0.000153,2]
[420122094,1775694643469,-10272.10520533,0.00015309,2]
[420122095,1775694643480,-500.0,0.00015309,2]
[420122096,1775694643490,-151.0,0.00015309,2]
[420122097,1775694643501,-350.0,0.0001532,2]
[420122098,1775694643512,-373.04449765,0.0001532,2]
[420122099,1775694643523,-1573.0,0.0001536,2]
[420122100,1775694643534,-1573.0,0.0001536,2]
[420122101,1775694643545,-10652.17309792,0.00015364,2]
[420122102,1775694643555,-500.0,0.00015364,2]
[420122103,1775694643565,-151.0,0.00015364,2]
[420122104,1775694643576,-350.0,0.00015371,3]
[420122105,1775694643587,-1000.0,0.00015388,2]
[420122106,1775694643597,-1000.0,0.00015388,2]
[420122107,1775694643608,-1000.0,0.00015388,2]
[420122108,1775694643618,-500.0,0.00015388,2]
[420122109,1775694643629,-11300.0,0.000154,5]
[420122110,1775694643639,-1200.0,0.000154,5]
[420122111,1775694643650,-2000.0,0.00015405,2]
[420122112,1775694643661,-500.0,0.00015405,2]
[420122113,1775694643672,-500.0,0.00015405,2]
[420122114,1775694643682,-2000.0,0.00015405,2]
[420122115,1775694643693,-11046.30350255,0.00015419,2]
[420122117,1775694643704,-500.0,0.00015419,2]
[420122119,1775694643714,-151.0,0.00015419,2]
[420122121,1775694643725,-237.29758343,0.00015422,2]
[420122123,1775694643735,-786.02,0.00015429,2]
[420122125,1775694643746,-350.0,0.00015442,2]
[420122126,1775694643756,-3495.366,0.00015459,2]
[420122128,1775694643767,-175.045,0.00015459,2]
[420122130,1775694643777,-181.08010149,0.00015472,2]
[420122132,1775694643788,-1235.18214925,0.00015472,2]
[420122134,1775694643798,-200.0,0.00015472,2]
[420122135,1775694643809,-771.01748645,0.00015472,2]
[420122137,1775694643820,-181.08010149,0.00015472,2]
[420122139,1775694643830,-599.60298507,0.00015472,2]
[420122140,1775694643840,-290.26104003,0.00015472,2]
[420122141,1775694643851,-11455.01673214,0.00015474,2]
[420122142,1775694643861,-500.0,0.00015474,2]
[420122143,1775694643871,-151.0,0.00015474,2]
[420122144,1775694643880,-321.58,0.00015474,2]
[420122145,1775694643891,-4609.0,0.00015476,2]
[420122146,1775694643903,-1792.0,0.00015492,2]
[420122147,1775694643913,-2200.0,0.000155,5]
[420122148,1775694643923,-200.0,0.000155,5]
[420122149,1775694643934,-1792.0,0.00015502,2]
[420122150,1775694643945,-500.0,0.00015529,2]
[420122151,1775694643956,-2370.17319059,0.00015529,2]
[420122152,1775694643966,-151.0,0.00015529,2]
[420122153,1775694643976,-1000.0,0.00015548,2]
[420122155,1775694643987,-1666.66666,0.0001555,2]
[420122157,1775694643998,-1666.66667,0.0001555,2]
[420122159,1775694644008,-350.0,0.00015559,2]
[420122160,1775694644018,-1666.66667,0.0001556,2]
[420122161,1775694644028,-1534.0,0.00015568,2]
[420122162,1775694644039,-197.26417,0.0001557,2]
[420122163,1775694644049,-1244.1901,0.0001558,2]
[420122164,1775694644059,-293.46985931,0.00015581,2]
[420122165,1775694644069,-200.0,0.00015583,2]
[420122166,1775694644079,-500.0,0.00015584,2]
[420122167,1775694644090,-151.0,0.00015584,2]
[420122168,1775694644100,-500.0,0.00015584,2]
[420122169,1775694644110,-500.0,0.00015584,2]
[420122170,1775694644120,-500.0,0.00015584,2]
[420122171,1775694644131,-200.0,0.00015584,2]
[420122172,1775694644143,-4310.90487752,0.00015599,2]
[420122173,1775694644153,-2057.58181954,0.00015599,2]
[420122174,1775694644163,-1309.1028729,0.00015599,2]
[420122175,1775694644173,-1000.0,0.000156,2]
[420122176,1775694644184,-1000.0,0.000156,3]
[420122177,1775694644194,-2200.0,0.000156,5]
[420122178,1775694644204,-200.0,0.000156,5]
[420122179,1775694644215,-510.10894383,0.000156,2]
[420122180,1775694644225,-500.0,0.00015609,2]
[420122181,1775694644235,-2166.0,0.0001561,5]
[420122182,1775694644245,-196.514914,0.0001561,2]
[420122183,1775694644255,-1645.5070625,0.0001561,2]
[420122184,1775694644265,-42060.88375008,0.0001561,2]
[420122185,1775694644274,-333.33333334,0.00015615,2]
[420122186,1775694644283,-197.26416,0.0001562,2]
[420122187,1775694644296,-350.0,0.00015623,2]
[420122188,1775694644306,-500.0,0.00015639,2]
[420122189,1775694644316,-151.0,0.00015639,2]
[420122190,1775694644327,-237.29758343,0.00015661,2]
[420122191,1775694644336,-1500.0,0.00015663,2]
[420122192,1775694644346,-754.25810122,0.00015663,2]
[420122193,1775694644357,-1500.0,0.00015663,2]
[420122194,1775694644367,-892.34268442,0.00015663,2]
[420122195,1775694644377,-500.0,0.0001567,2]
[420122196,1775694644386,-500.0,0.0001567,2]
[420122197,1775694644396,-500.0,0.0001567,2]
[420122198,1775694644406,-197.26417,0.0001567,2]
[420122199,1775694644416,-500.0,0.0001567,5]
[420122200,1775694644425,-500.0,0.0001567,2]
[420122201,1775694644435,-1534.0,0.00015671,2]
[420122202,1775694644445,-33915.0,0.00015671,2]
[420122203,1775694644454,-162.0,0.0001568,2]
[420122204,1775694644464,-1219.81170071,0.0001568,2]
[420122206,1775694644473,-1573.0,0.0001568,2]
[420122207,1775694644483,-1573.0,0.0001568,2]
[420122209,1775694644493,-1572.0,0.0001568,2]
[420122211,1775694644502,-162.0,0.0001568,2]
[420122214,1775694644511,-321.58,0.00015683,2]
[420122215,1775694644521,-152.1118183,0.00015685,2]
[420122218,1775694644531,-500.0,0.00015694,2]
[420122220,1775694644542,-151.0,0.00015694,2]
[420122222,1775694644552,-200.0,0.000157,2]
[420122224,1775694644561,-980629.36352074,0.000157,2]
[420122226,1775694644571,-2200.0,0.000157,5]
[420122228,1775694644581,-306.0,0.000157,2]
[420122229,1775694644590,-200.0,0.000157,5]
[420122231,1775694644600,-3046.0,0.000157,2]
[420122233,1775694644610,-1000.0,0.000157,2]
[420122236,1775694644620,-313.0,0.000157,2]
[420122237,1775694644629,-878.0,0.000157,2]
[420122239,1775694644639,-174.77031642,0.000157,2]
[420122241,1775694644648,-786.02,0.00015703,2]
[420122244,1775694644658,-248.882292,0.00015705,2]
[420122246,1775694644668,-1000.0,0.00015705,2]
[420122248,1775694644678,-1000.0,0.00015705,2]
[420122250,1775694644686,-1000.0,0.00015705,2]
[420122252,1775694644696,-1000.0,0.00015705,2]
[420122254,1775694644706,-1000.0,0.00015705,2]
[420122255,1775694644716,-1000.0,0.00015705,2]
[420122257,1775694644726,-1000.0,0.00015705,2]
[420122259,1775694644736,-1000.0,0.00015705,2]
[420122261,1775694644746,-1000.0,0.00015705,2]
[420122262,1775694644757,-1000.0,0.00015705,2]
[420122263,1775694644767,-1000.0,0.00015705,2]
[420122264,1775694644777,-398.985,0.00015705,2]
[420122265,1775694644786,-150.0,0.00015705,2]
[420122266,1775694644796,-150.0,0.00015706,2]
[420122267,1775694644806,-150.0,0.00015706,2]
[420122268,1775694644818,-1792.0,0.00015706,2]
[420122269,1775694644828,-150.0,0.00015707,2]
[420122270,1775694644837,-150.0,0.00015707,2]
[420122271,1775694644847,-151.0,0.00015707,2]
[420122272,1775694644856,-151.0,0.00015707,2]
[420122273,1775694644866,-151.0,0.00015707,2]
[420122274,1775694644875,-151.0,0.00015707,2]
[420122275,1775694644884,-666.0,0.00015709,2]
[420122276,1775694644894,-1099.20357934,0.00015709,5]
[420122277,1775694644904,-500.0,0.00015709,2]
[420122278,1775694644913,-500.0,0.00015709,6]
[420122279,1775694644923,-500.0,0.00015709,7]
[420122280,1775694644932,-500.0,0.00015709,8]
[420122281,1775694644942,-500.0,0.00015709,9]
[420122282,1775694644952,-500.0,0.00015709,10]
[420122283,1775694644961,-2253.0,0.0001571,5]
[420122284,1775694644971,-297990.36801201,0.0001571,2]
[420122285,1775694644980,-216.53625853,0.0001571,2]
[420122286,1775694644989,-1614980.30263989,0.0001571,2]
[420122287,1775694645408,-28366.02819759,0.0001561,2]
[420122288,1775694645420,-18193.24315938,0.0001561,2]
[420122289,1775694645429,-1325.1789636,0.0001571,2]
[420122290,1775694645540,-1046.0,0.00015297,2]
[420122291,1775694645550,-95766.6551386,0.0001571,2]
[420122292,1775694645562,-8383.37047094,0.0001571,2]
[420122293,1775694645635,-4540.0,0.0001571,2]
[420122294,1775694645647,-2600.0,0.0001571,2]
[420122298,1775694646050,-450.87171231,0.00011104,2]
[420122299,1775694646062,-1049.51108112,0.00011104,2]
[420122300,1775694646074,-999.61720657,0.00011104,2]
[420122301,1775694646083,-160.0,0.00014096,7]
[420122302,1775694646092,-704.588804,0.00014096,7]
[420122303,1775694646102,-1249.177609,0.00014096,7]
[420122304,1775694646111,-960.802915,0.00014801,7]
[420122305,1775694646121,-1929.67539173,0.0001571,2]
[420122359,1775695833810,-152.406,9.597e-05,4]
[420122360,1775695833820,-123.344,0.00010076,2]
[420122361,1775695833833,-126.656,0.00010076,2]
[420122362,1775695833843,-277.64613,0.00010556,2]
[420122363,1775695833855,-376.31896923,0.00010556,2]
[420122364,1775695833864,-1138.25785826,0.00010556,2]
[420122365,1775695833874,-250.0,0.00010556,2]
[420122366,1775695833884,-250.0,0.00010567,2]
[420122367,1775695833893,-58.26495593,0.000106,5]
[420122368,1775695834093,-665.72995843,0.000106,5]
[420122369,1775695834106,-4509.00508564,0.000106,5]
[420122370,1775695834117,-300.0,0.00010798,2]
[420122371,1775695834127,-1200.0,0.00010798,2]
[420122372,1775695834137,-43233.1782,0.00010799,2]
[420122373,1775695834148,-123623.59042159,0.00010799,2]
[420122374,1775695834159,-1941.48773848,0.00010799,2]
[420122375,1775695834171,-1424.51542341,0.00010799,2]
[420122376,1775695838442,-254.18043806,0.00010799,2]
[420122377,1775695838455,-195028.66487846,0.00010799,2]
[420122378,1775695838465,-151.0,0.00010892,2]
[420122379,1775695838474,-151.0,0.00010892,2]
[420122380,1775695838484,-151.0,0.00010892,2]
[420122381,1775695838494,-151.0,0.00010892,2]
[420122382,1775695838504,-151.0,0.00010892,2]
[420122383,1775695838513,-151.0,0.00010892,2]
[420122384,1775695838523,-653.36453401,0.00010892,2]
[420122385,1775695838533,-151.0,0.00010892,2]
[420122386,1775695838543,-151.0,0.00010892,2]
[420122387,1775695838552,-151.0,0.00010892,2]
[420122388,1775695838562,-151.0,0.00010892,2]
[420122389,1775695838572,-172.25667285,0.00010892,2]
[420122390,1775695838582,-14319.49,0.00010898,2]
[420122391,1775695838592,-500.0,0.00010898,2]
[420122392,1775695838602,-500.0,0.00010959,2]
[420122393,1775695838613,-150.0,0.00011,2]
[420122394,1775695838623,-1125.98955507,0.00011099,2]
[420122395,1775695838633,-1000.0,0.00011104,2]
[420122396,1775695838643,-1125.98955501,0.0001136,2]
[420122397,1775695838653,-337.0,0.00011868,2]
[420122398,1775695838663,-1680.0,0.00011878,2]
[420122399,1775695838673,-1125.98955501,0.00011927,2]
[420122400,1775695838683,-299.99,0.00011943,2]
[420122401,1775695838693,-150.99,0.00011943,2]
[420122402,1775695838703,-4357.04,0.00011943,2]
[420122403,1775695838714,-3847.99434993,0.00011944,2]
[420122404,1775695838727,-1358.36788851,0.00011944,2]
[420122405,1775695838740,-541.73818,0.00011944,2]
[420122406,1775695838751,-1681.61833701,0.00011944,2]
[420122407,1775695838763,-452.97492666,0.00011944,2]
[420122408,1775695838776,-2031.52706697,0.00011944,2]
[420122409,1775695838788,-3613.99197718,0.00011944,2]
[420122410,1775695838836,-629.949,0.00011944,2]
[420122411,1775695838848,-275.50740022,0.00011944,2]
[420122412,1775695838860,-505.0,0.00011944,2]
[420122515,1775695840784,-8290.87087352,0.00011944,2]
[420122516,1775695840793,-9999.99,0.00011944,2]
[420122517,1775695840803,-251.98897865,0.00011981,2]
[420122518,1775695840812,-1251.1496,0.00011987,2]
[420122519,1775695840821,-241.0,0.00012073,2]
[420122520,1775695840831,-289.0,0.00012097,2]
[420122521,1775695840841,-627.0,0.00012178,2]
[420122522,1775695840851,-173.3329,0.000124,2]
[420122523,1775695840860,-1125.98955501,0.00012495,2]
[420122524,1775695840870,-250.0,0.0001268,2]
[420122525,1775695840879,-250.0,0.00013,2]
[420122526,1775695840889,-1852.42,0.0001301,2]
[420122527,1775695840898,-8142.21,0.00013045,2]
[420122528,1775695840908,-1125.98955501,0.00013062,2]
[420122529,1775695840918,-2351.0,0.00013065,2]
[420122530,1775695840928,-20231.69,0.00013091,2]
[420122531,1775695840938,-185.55,0.00013176,2]
[420122532,1775695840947,-200.0,0.00013308,2]
[420122533,1775695840967,-152.59,0.0001336,2]
[420122534,1775695840979,-3225.76,0.00013368,2]
[420122535,1775695840989,-500.0,0.00013405,2]
[420122536,1775695840999,-1500.0,0.00013405,2]
[420122537,1775695841009,-500.0,0.00013436,2]
[420122538,1775695841019,-420.23507108,0.00013436,2]
[420122539,1775695841028,-375.89199095,0.00013436,2]
[420122540,1775695841038,-500.0,0.00013436,2]
[420122541,1775695841048,-167.60866724,0.00013436,2]
[420122542,1775695841060,-500.0,0.00013436,2]
[420122543,1775695841070,-500.0,0.00013436,2]
[420122544,1775695841081,-500.0,0.00013436,2]
[420122545,1775695841091,-224.43935768,0.00013436,2]
[420122546,1775695841101,-171.74509601,0.00013436,2]
[420122547,1775695841111,-500.0,0.00013436,2]
[420122548,1775695841120,-500.0,0.00013436,2]
[420122549,1775695841131,-6877.22,0.00013437,2]
[420122550,1775695841141,-15652.05,0.00013529,2]
[420122551,1775695841151,-1603.89,0.0001366,2]
[420122552,1775695841162,-500.0,0.00013665,2]
[420122553,1775695841172,-500.0,0.00013698,2]
[420122554,1775695841182,-500.0,0.00013698,2]
[420122555,1775695841192,-500.0,0.00013698,2]
[420122556,1775695841203,-500.0,0.00013698,2]
[420122557,1775695841213,-500.0,0.00013698,2]
[420122558,1775695841222,-501.43489187,0.00013698,2]
[420122559,1775695841232,-500.0,0.00013698,2]
[420122560,1775695841241,-417.61051604,0.00013698,2]
[420122561,1775695841251,-500.0,0.00013698,2]
[420122562,1775695841260,-500.0,0.00013698,2]
[420122563,1775695841271,-530.43633324,0.00013698,2]
[420122564,1775695841281,-500.0,0.00013698,2]
[420122565,1775695841291,-500.0,0.00013698,2]
[420122566,1775695841300,-500.0,0.00013698,2]
[420122567,1775695841310,-500.0,0.00013698,2]
[420122568,1775695841320,-500.0,0.00013698,2]
[420122569,1775695841331,-200.0,0.00013699,2]
[420122570,1775695841340,-321.58210768,0.00013699,2]
[420122571,1775695841350,-200.2954,0.000137,2]
[420122572,1775695841361,-160.0,0.00014323,2]
[420122573,1775695841372,-160.0,0.00014323,2]
[420122574,1775695841382,-3292.0,0.00014372,2]
[420122575,1775695841392,-155.95,0.00014384,2]
[420122576,1775695841402,-1573.0,0.000144,2]
[420122577,1775695841411,-9716.35,0.00014504,2]
[420122578,1775695841421,-500.0,0.00014533,2]
[420122579,1775695841431,-500.0,0.00014533,2]
[420122581,1775695841441,-623.88,0.00014533,2]
[420122583,1775695841451,-500.0,0.00014533,2]
[420122585,1775695841466,-500.0,0.00014533,2]
[420122586,1775695841476,-500.0,0.00014533,3]
[420122587,1775695841486,-500.0,0.00014533,4]
[420122588,1775695841497,-500.0,0.00014533,2]
[420122589,1775695841507,-162.0,0.0001472,2]
[420122590,1775695841516,-2836.16146379,0.00014849,2]
[420122591,1775695841527,-364.53,0.00014853,2]
[420122592,1775695841536,-6717.7,0.00014853,2]
[420122593,1775695841546,-500.0,0.00014924,2]
[420122594,1775695841556,-1191.11104075,0.00014924,2]
[420122595,1775695841566,-200.0,0.00014924,2]
[420122596,1775695841576,-578.20924308,0.00014924,2]
[420122597,1775695841586,-174.61919141,0.00014924,2]
[420122598,1775695841595,-743.50770149,0.00014924,2]
[420122599,1775695841605,-275.75,0.00014924,2]
[420122600,1775695841614,-151.0,0.00014924,2]
[420122601,1775695841624,-174.61919141,0.00014924,2]
[420122602,1775695841634,-685.20849512,0.00014924,2]
[420122603,1775695841643,-279.9045709,0.00014924,2]
[420122604,1775695841653,-500.0,0.00014979,2]
[420122605,1775695841662,-151.0,0.00014979,2]
[420122606,1775695841672,-1793.0,0.00014993,2]
[420122607,1775695841682,-300.0,0.00015,2]
[420122608,1775695841692,-500.0,0.00015034,2]
[420122609,1775695841701,-151.0,0.00015034,2]
[420122610,1775695841711,-1573.0,0.0001504,2]
[420122611,1775695841721,-162.0,0.0001504,2]
[420122612,1775695841731,-350.0,0.00015081,2]
[420122613,1775695841741,-268.10503,0.00015088,7]
[420122614,1775695841751,-180.338139,0.00015088,7]
[420122615,1775695841761,-160.0,0.00015088,2]
[420122616,1775695841771,-190.602639,0.00015088,2]
[420122617,1775695841780,-221.205279,0.00015088,2]
[420122618,1775695841790,-160.0,0.00015088,7]
[420122619,1775695841799,-272.868827,0.00015088,7]
[420122620,1775695841809,-385.737654,0.00015088,7]
[420122621,1775695841818,-500.0,0.00015089,2]
[420122622,1775695841827,-151.0,0.00015089,2]
[420122623,1775695842382,-231.452,0.000151,2]
[420122624,1775695842403,-400.0,0.000151,5]
[420122625,1775695842413,-1098.56312406,0.0001513,2]
[420122626,1775695842423,-500.0,0.00015144,2]
[420122627,1775695842432,-151.0,0.00015144,2]
[420122628,1775695842441,-233.631622,0.00015162,7]
[420122629,1775695842451,-309.663831,0.00015162,2]
[420122630,1775695842460,-233.737796,0.00015162,7]
[420122631,1775695842469,-183.671636,0.00015173,2]
[420122632,1775695842479,-500.0,0.00015199,2]
[420122633,1775695842489,-151.0,0.00015199,2]
[420122634,1775695842499,-800.0,0.000152,5]
[420122635,1775695842508,-350.0,0.00015243,2]
[420122636,1775695842518,-500.0,0.00015254,2]
[420122637,1775695842527,-151.0,0.00015254,2]
[420122638,1775695842536,-3524.0,0.00015268,2]
[420122639,1775695842545,-622.0,0.00015268,2]
[420122640,1775695842555,-1046.0,0.00015268,2]
[420122641,1775695842566,-1347.0,0.00015268,2]
[420122642,1775695842576,-1264.0,0.00015268,2]
[420122643,1775695842586,-150.0,0.00015268,2]
[420122644,1775695842596,-926.0,0.00015268,2]
[420122645,1775695842606,-1217.0,0.00015268,2]
[420122646,1775695842615,-217.0,0.00015268,2]
[420122647,1775695842625,-273.0,0.00015268,2]
[420122648,1775695842635,-3772.0,0.00015268,2]
[420122649,1775695842644,-2471.0,0.00015268,2]
[420122650,1775695842655,-1200.0,0.000153,5]
[420122651,1775695842664,-2000.0,0.000153,2]
[420122652,1775695842674,-291.70752069,0.00015305,2]
[420122653,1775695842685,-500.0,0.00015309,2]
[420122654,1775695842694,-151.0,0.00015309,2]
[420122655,1775695842703,-786.02,0.00015351,2]